bitfinex-derivatives/quotes_ETHF0:USTF0_20241027
["timestamp","ask_amount","ask_price","bid_price","bid_amount"]
[1729994134150,2.13242247,2480.0,2479.9,1.2183]
[1729994135549,2.13242247,2480.0,2479.9,0.8146]
[1729994136359,2.53610247,2480.0,2479.9,0.8146]
[1729994136843,2.13242247,2480.0,2479.9,1.2183]
[1729994137048,2.53610247,2480.0,2479.9,0.8146]
[1729994138659,2.13242247,2480.0,2479.9,1.2183]
[1729994139862,0.824,2480.0,2479.9,2.52672247]
[1729994140159,2.13242247,2480.0,2479.9,1.2183]
[1729994140949,1.30842247,2480.0,2479.9,1.2183]
[1729994143056,1.30842247,2480.0,2479.9,0.8118]
[1729994153166,4.43547,2480.1,2479.9,0.8118]
[1729994153362,1.30842247,2480.0,2479.9,0.8118]
[1729994154155,4.43547,2480.1,2479.9,1.71652247]
[1729994154156,3.2078,2480.1,2479.9,1.71652247]
[1729994154365,1.30842247,2480.1,2479.9,1.71652247]
[1729994154563,1.30842247,2480.1,2480.0,0.83698]
[1729994157358,4.4505,2480.2,2480.1,0.40367]
[1729994157564,5.75892247,2480.2,2480.1,0.40367]
[1729994160279,2.55112247,2480.2,2480.1,0.40367]
[1729994163058,1.72712247,2480.2,2480.1,0.40367]
[1729994164871,3.2078,2480.3,2480.2,0.40365]
[1729994165172,1.30842247,2480.5,2480.4,0.40362]
[1729994165869,1.30842247,2480.5,2480.3,0.8511]
[1729994166063,1.30842247,2480.4,2480.3,0.84893]
[1729994166263,1.74192247,2480.4,2480.3,0.84893]
[1729994168368,2.14554247,2480.4,2480.3,0.4453]
[1729994168970,1.74192247,2480.4,2480.3,0.84894]
[1729994169861,2.14554247,2480.4,2480.3,0.84894]
[1729994170261,2.14554247,2480.4,2480.3,0.4453]
[1729994170466,0.40364,2480.3,2480.1,0.40365]
[1729994170671,1.30842247,2480.2,2480.1,0.40365]
[1729994172276,1.71207247,2480.2,2480.0,0.85327]
[1729994172473,1.30842247,2480.1,2480.0,0.85328]
[1729994175376,1.30842247,2480.2,2480.0,1.75802247]
[1729994175580,1.30842247,2480.2,2480.1,0.40367]
[1729994177078,1.71207247,2480.2,2480.1,0.40367]
[1729994177479,1.30842247,2480.2,2480.1,0.40367]
[1729994181779,1.30842247,2480.2,2480.0,0.85328]
[1729994182077,4.91989247,2480.1,2480.0,0.40368]
[1729994182284,4.91989247,2480.1,2479.9,0.40369]
[1729994182484,2.15382247,2480.0,2479.9,0.40369]
[1729994183881,2.15382247,2480.0,2479.8,1.86629519]
[1729994184082,1.30842247,2479.9,2479.8,1.2229]
[1729994184985,1.71212247,2479.9,2479.8,0.4061]
[1729994185188,0.40373,2479.7,2479.6,1.47119519]
[1729994185488,0.40373,2479.7,2479.5,1.23476]
[1729994185489,1.71217247,2479.7,2479.5,1.23476]
[1729994185687,1.72242247,2479.6,2479.5,1.65886]
[1729994187081,3.2078,2479.8,2479.7,0.40373]
[1729994187375,3.2078,2479.8,2479.7,1.71215247]
[1729994187376,1.30842247,2479.8,2479.7,1.71215247]
[1729994187984,1.30842247,2479.8,2479.7,0.40373]
[1729994188487,1.30842247,2479.8,2479.7,4.43653]
[1729994194784,1.30842247,2479.8,2479.7,0.40373]
[1729994195890,1.30842247,2479.8,2479.7,4.43653]
[1729994196288,1.30842247,2479.8,2479.7,0.40373]
[1729994200092,0.4131,2480.0,2479.6,1.30842247]
[1729994200395,3.2078,2480.1,2480.0,0.40368]
[1729994200396,4.0308,2480.1,2480.0,0.40368]
[1729994200590,5.76032247,2480.1,2480.0,0.40368]
[1729994204087,3.6289,2480.1,2480.0,1.71210247]
[1729994204297,4.93732247,2480.1,2480.0,0.40368]
[1729994204886,1.72952247,2480.1,2480.0,0.40368]
[1729994222107,2.13319247,2480.1,2479.9,0.40368]
[1729994222305,1.30842247,2480.0,2479.9,0.40368]
[1729994233726,1.71211247,2480.0,2479.8,0.40371]
[1729994234030,1.71872247,2479.9,2479.8,0.40371]
[1729994240025,0.4211,2480.1,2480.0,0.40368]
[1729994240232,1.72952247,2480.1,2480.0,0.40368]
[1729994241830,5.76152247,2480.1,2480.0,0.40368]
[1729994242134,6.20432247,2480.1,2480.0,0.40368]
[1729994245133,2.17232247,2480.1,2480.0,0.40368]
[1729994245734,1.72952247,2480.1,2480.0,0.40368]
[1729994246536,2.55252247,2480.1,2480.0,0.40368]
[1729994248737,2.55252247,2480.1,2479.9,0.4139]
[1729994249039,2.95620247,2480.1,2479.9,0.81759]
[1729994249655,2.55252247,2480.1,2479.9,0.4139]
[1729994249833,2.55252247,2480.1,2480.0,0.40368]
[1729994250139,2.95620247,2480.1,2480.0,0.40368]
[1729994250335,2.55252247,2480.1,2480.0,0.40368]
[1729994253741,2.55252247,2480.1,2480.0,0.84978]
[1729994257641,2.55252247,2480.1,2480.0,1.29818]
[1729994258944,1.72952247,2480.1,2480.0,1.29818]
[1729994259149,1.30842247,2480.1,2480.0,1.29818]
[1729994269155,1.30842247,2480.1,2480.0,0.4461]
[1729994269356,1.71209247,2480.1,2480.0,0.4461]
[1729994269665,1.71209247,2480.1,2480.0,0.84978]
[1729994269852,1.30842247,2480.1,2480.0,0.84978]
[1729994277361,1.71209247,2480.1,2480.0,0.4461]
[1729994278446,1.71209247,2480.1,2480.0,0.84978]
[1729994279755,1.71209247,2480.1,2480.0,0.4461]
[1729994281457,1.71209247,2480.1,2480.0,0.84978]
[1729994281654,4.91989247,2480.1,2480.0,0.4461]
[1729994281858,0.40368,2480.0,2479.9,0.8176]
[1729994282056,0.82028,2480.0,2479.9,1.04514204]
[1729994282261,0.4166,2480.0,2479.9,1.04514204]
[1729994282466,0.4166,2480.0,2479.9,0.63124204]
[1729994282467,0.82028,2480.0,2479.9,0.63124204]
[1729994283150,0.40373,2479.7,2479.6,1.0542263]
[1729994283357,5.74296247,2479.7,2479.6,0.63128862]
[1729994284257,5.33922247,2479.7,2479.4,1.25428]
[1729994284459,1.30842247,2479.5,2479.4,1.25428]
[1729994284658,1.30842247,2479.5,2479.4,1.8856313]
[1729994285472,1.30842247,2479.5,2479.4,5.03109071]
[1729994286069,1.30842247,2479.5,2479.4,4.51542733]
[1729994287069,1.30842247,2479.5,2479.4,2.94061071]
[1729994287470,1.30842247,2479.5,2479.4,2.30925941]
[1729994289475,1.30842247,2479.5,2479.3,1.05497941]
[1729994289665,0.40383,2479.1,2479.0,3.2078]
[1729994289976,2.13142247,2479.1,2479.0,0.40385]
[1729994290267,2.13142247,2479.1,2478.9,0.8568]
[1729994290484,2.13142247,2479.1,2479.0,0.40385]
[1729994290485,4.0308,2479.1,2479.0,0.40385]
[1729994290865,3.2078,2479.1,2479.0,0.40385]
[1729994291068,4.51622247,2479.1,2479.0,0.40385]
[1729994292371,3.2078,2479.4,2479.3,0.4038]
[1729994292675,1.30842247,2479.4,2479.3,0.4038]
[1729994293065,1.30842247,2479.5,2479.4,0.40378]
[1729994301179,1.30842247,2479.5,2479.2,1.65631]
[1729994301377,1.30842247,2479.3,2479.2,1.24691]
[1729994301776,1.30842247,2479.3,2479.2,5.28051]
[1729994303178,1.30842247,2479.3,2479.2,1.24691]
[1729994303569,1.71222247,2479.3,2479.2,0.8431]
[1729994303772,1.30842247,2479.3,2479.2,0.8431]
[1729994303972,1.30842247,2479.3,2479.2,1.24691]
[1729994305567,1.30842247,2479.3,2479.2,1.65761]
[1729994313481,1.71222247,2479.3,2479.2,0.4066]
[1729994313783,1.30842247,2479.3,2478.9,0.41]
[1729994313983,1.30842247,2479.0,2478.9,1.23276]
[1729994325889,1.30842247,2479.0,2478.9,0.82276]
[1729994333198,1.30842247,2479.0,2478.9,1.45419552]
[1729994334895,1.30842247,2479.0,2478.9,2.50917493]
[1729994335198,1.30842247,2479.0,2478.9,4.08321126]
[1729994335899,1.30842247,2479.0,2478.9,4.08321739]
[1729994336094,1.30842247,2479.0,2478.9,4.08342921]
[1729994336699,1.30842247,2479.0,2478.9,4.08343891]
[1729994338099,1.30842247,2479.0,2478.9,2.50918866]
[1729994340098,1.30842247,2479.0,2478.9,4.08362643]
[1729994340401,1.30842247,2479.0,2478.9,4.08362691]
[1729994341701,1.30842247,2479.0,2478.9,3.0286475]
[1729994342202,1.30842247,2479.0,2478.9,4.59929029]
[1729994342907,1.30842247,2479.0,2478.9,3.02863371]
[1729994343099,1.30842247,2479.0,2478.9,4.5992765]
[1729994343303,2.14352247,2479.1,2479.0,0.40385]
[1729994343609,2.14352247,2479.1,2479.0,2.09052826]
[1729994344102,2.14352247,2479.1,2479.0,3.66541826]
[1729994345306,1.30842247,2479.1,2479.0,4.18081873]
[1729994346511,1.30842247,2479.1,2479.0,3.54938279]
[1729994346704,1.30842247,2479.1,2479.0,4.18079864]
[1729994347401,1.30842247,2479.2,2479.1,0.40383]
[1729994347609,1.30842247,2479.2,2479.1,1.45912566]
[1729994347906,1.30842247,2479.2,2479.1,1.87722566]
[1729994348103,1.30842247,2479.2,2479.1,2.39671164]
[1729994348501,1.30842247,2479.2,2479.1,3.45192725]
[1729994349309,1.30842247,2479.2,2479.1,2.39671164]
[1729994349511,1.30842247,2479.2,2479.1,3.45190632]
[1729994350511,1.30842247,2479.2,2479.1,2.39671164]
[1729994350706,1.30842247,2479.2,2479.1,3.45191309]
[1729994351806,1.30842247,2479.2,2479.1,2.39671164]
[1729994352406,1.30842247,2479.2,2479.1,3.45122505]
[1729994352715,1.30842247,2479.2,2479.1,2.39626964]
[1729994352908,1.30842247,2479.2,2479.1,3.45120901]
[1729994353213,1.30842247,2479.2,2479.1,0.40383]
[1729994355912,1.30842247,2479.2,2479.1,1.03521844]
[1729994360111,1.30842247,2479.2,2479.1,4.18056226]
[1729994360311,1.30842247,2479.2,2479.1,3.66511566]
[1729994360812,1.30842247,2479.2,2479.1,4.18056226]
[1729994361227,1.30842247,2479.2,2479.1,1.97853103]
[1729994361419,1.30842247,2479.2,2479.1,4.18058185]
[1729994361621,1.30842247,2479.2,2479.1,4.18056025]
[1729994362717,1.30842247,2479.2,2479.1,3.54915222]
[1729994365716,1.30842247,2479.2,2479.1,1.97850943]
[1729994365910,1.30842247,2479.2,2479.1,3.54915222]
[1729994366115,1.75732247,2479.3,2479.2,0.40381]
[1729994366315,1.75732247,2479.3,2479.2,1.89544962]
[1729994366616,1.75732247,2479.3,2479.2,2.33024962]
[1729994367117,1.75732247,2479.3,2479.2,0.84041]
[1729994367622,1.75732247,2479.3,2479.2,1.89544962]
[1729994368315,2.16112247,2479.3,2479.2,0.84041]
[1729994369415,1.75732247,2479.3,2479.2,0.84041]
[1729994370319,2.16112247,2479.3,2479.2,0.84041]
[1729994371918,1.75732247,2479.3,2479.2,0.84041]
[1729994374617,1.75732247,2479.3,2479.2,0.40381]
[1729994374823,2.16112247,2479.3,2479.2,0.40381]
[1729994375516,2.16112247,2479.3,2479.2,1.45884962]
[1729994375727,1.75732247,2479.3,2479.2,0.40381]
[1729994376319,1.75732247,2479.3,2479.2,1.45884962]
[1729994376526,2.16112247,2479.3,2479.2,0.40381]
[1729994376827,2.16112247,2479.3,2479.2,1.05503962]
[1729994377023,2.16112247,2479.3,2479.2,0.40381]
[1729994377523,2.16112247,2479.3,2479.1,1.45885962]
[1729994377831,1.30842247,2479.2,2479.1,1.45885962]
[1729994378020,1.30842247,2479.2,2479.1,3.03379926]
[1729994380129,1.30842247,2479.2,2479.1,3.03408114]
[1729994382022,1.30842247,2479.2,2479.1,3.03458549]
[1729994382327,1.30842247,2479.2,2479.1,3.03463032]
[1729994383429,1.30842247,2479.2,2479.1,3.54968431]
[1729994383925,1.30842247,2479.2,2479.1,1.97904152]
[1729994384114,1.30842247,2479.2,2479.1,3.54968431]
[1729994384514,1.30842247,2479.2,2479.1,1.97904152]
[1729994385121,1.30842247,2479.2,2479.1,3.54968431]
[1729994385819,1.30842247,2479.2,2479.1,4.18110836]
[1729994386024,1.30842247,2479.2,2479.1,4.18140344]
[1729994388633,1.30842247,2479.2,2479.1,4.18139447]
[1729994389530,1.30842247,2479.2,2479.1,4.18149508]
[1729994390335,1.30842247,2479.2,2479.1,1.03523508]
[1729994392455,1.30842247,2479.2,2479.1,0.40382]
[1729994392626,1.30842247,2479.2,2479.1,1.0352339]
[1729994392827,1.30842247,2479.2,2479.1,0.40382]
[1729994394831,1.30842247,2479.2,2479.0,1.47863504]
[1729994395142,1.30842247,2479.1,2479.0,1.88247504]
[1729994396737,1.30842247,2479.1,2479.0,2.51392084]
[1729994396937,1.30842247,2479.1,2479.0,1.88247504]
[1729994398329,1.30842247,2479.1,2479.0,3.97332889]
[1729994398531,1.30842247,2479.1,2479.0,2.39728279]
[1729994398739,1.30842247,2479.1,2479.0,3.97333884]
[1729994399938,1.30842247,2479.1,2479.0,5.62857341]
[1729994400339,1.30842247,2479.1,2479.0,5.62857346]
[1729994401142,1.72592247,2479.1,2479.0,5.62857346]
[1729994401446,2.12975247,2479.1,2479.0,3.79162082]
[1729994402035,2.12975247,2479.1,2479.0,1.68740772]
[1729994402238,2.12975247,2479.1,2478.9,0.4104]
[1729994402239,0.40385,2479.0,2478.9,1.46636232]
[1729994402439,10.26424494,2479.0,2478.6,1.58411937]
[1729994402638,4.92012247,2478.7,2478.5,1.58411937]
[1729994402840,2.55593247,2478.6,2478.5,1.58411937]
[1729994403045,2.55593247,2478.6,2478.5,0.63159418]
[1729994403249,2.55593247,2478.6,2478.4,2.39581937]
[1729994403250,2.15202247,2478.6,2478.4,2.39581937]
[1729994403451,3.2078,2478.7,2478.5,1.30842247]
[1729994403652,3.2078,2478.7,2478.6,1.71233247]
[1729994404641,4.51622247,2478.7,2478.6,1.71233247]
[1729994406250,3.2078,2478.7,2478.6,1.71233247]
[1729994406553,3.2078,2478.7,2478.6,5.49943458]
[1729994406748,1.30842247,2478.8,2478.7,0.4039]
[1729994406948,1.30842247,2478.8,2478.7,1.03538222]
[1729994407253,3.01442247,2479.1,2479.0,0.40385]
[1729994407851,3.01442247,2479.1,2479.0,1.26855]
[1729994409154,2.19242247,2479.1,2479.0,2.57697247]
[1729994409356,5.33822247,2479.4,2479.3,0.4038]
[1729994409557,4.51622247,2479.4,2479.3,0.4038]
[1729994410651,4.51622247,2479.4,2479.3,0.8511]
[1729994412052,1.30842247,2479.4,2479.3,0.8511]
[1729994412349,3.6289,2479.5,2479.3,0.4473]
[1729994412554,0.4211,2479.5,2479.4,0.40378]
[1729994412744,1.72952247,2479.5,2479.4,0.40378]
[1729994413257,1.30842247,2479.5,2479.4,0.40378]
[1729994413855,1.30842247,2479.6,2479.4,1.30842247]
[1729994414156,1.30842247,2479.6,2479.5,0.83907]
[1729994414656,3.6494,2479.8,2479.5,1.74372247]
[1729994414857,3.6494,2479.8,2479.7,0.40373]
[1729994415056,4.95782247,2479.8,2479.7,0.40373]
[1729994415357,5.39192247,2479.8,2479.7,0.40373]
[1729994416059,2.18412247,2479.8,2479.7,0.40373]
[1729994422365,1.30842247,2479.8,2479.7,0.40373]
[1729994423067,1.2648,2480.1,2479.9,0.4037]
[1729994423254,1.74732247,2480.0,2479.8,1.71214247]
[1729994423457,0.4428,2480.1,2479.9,1.72992247]
[1729994423665,3.6243,2480.3,2480.2,0.40365]
[1729994423666,4.95512247,2480.3,2480.2,0.40365]
[1729994423859,1.74732247,2480.3,2480.2,0.40365]
[1729994425576,0.4389,2480.3,2480.2,1.71207247]
[1729994425867,0.4389,2480.3,2480.2,0.40365]
[1729994427761,0.4389,2480.3,2480.2,1.71207247]
[1729994427962,1.74732247,2480.3,2480.2,1.71207247]
[1729994428570,1.30842247,2480.3,2480.2,1.71207247]
[1729994429168,1.30842247,2480.3,2480.2,0.40365]
[1729994430170,0.40367,2480.1,2479.5,3.2078]
[1729994430370,0.856,2480.0,2479.8,0.40371]
[1729994430571,1.25969,2480.0,2479.7,0.40372]
[1729994430874,0.40371,2479.9,2479.6,1.26174]
[1729994431765,1.30842247,2479.7,2479.2,3.2078]
[1729994431974,1.30842247,2479.5,2479.4,0.40377]
[1729994434269,1.30842247,2479.5,2479.3,0.83089]
[1729994434478,1.30842247,2479.4,2479.3,0.83089]
[1729994435485,1.30842247,2479.5,2479.3,1.73552247]
[1729994435776,1.30842247,2479.5,2479.4,0.40378]
[1729994436372,1.30842247,2479.5,2479.3,0.4271]
[1729994436679,1.30842247,2479.5,2479.3,0.83089]
[1729994437067,1.30842247,2479.5,2479.4,0.40378]
[1729994437380,1.30842247,2479.5,2479.3,2.13931247]
[1729994437879,1.30842247,2479.5,2479.4,0.40378]
[1729994438182,2.13742247,2479.6,2479.5,0.40377]
[1729994438778,0.829,2479.6,2479.5,0.40377]
[1729994440976,0.4087,2479.6,2479.5,0.40377]
[1729994441181,0.4087,2479.6,2479.5,0.84867]
[1729994443275,0.4087,2479.6,2479.5,2.15709247]
[1729994445381,2.13042247,2479.8,2479.5,1.75332247]
[1729994445583,1.30842247,2479.8,2479.7,0.40373]
[1729994446291,1.73262247,2479.9,2479.6,1.73862247]
[1729994446589,2.55462247,2479.9,2479.8,0.40372]
[1729994446982,2.55462247,2479.9,2479.8,0.82942]
[1729994447981,2.13042247,2479.9,2479.8,0.82942]
[1729994448389,4.51622247,2480.0,2479.8,1.73412247]
[1729994448687,1.30842247,2480.0,2479.9,0.4037]
[1729994448885,1.30842247,2480.0,2479.9,0.8224]
[1729994451088,1.30842247,2480.0,2479.9,2.13082247]
[1729994451790,2.13042247,2480.1,2480.0,0.40368]
[1729994461900,2.13042247,2480.1,2479.9,0.82239]
[1729994462100,1.72322247,2480.0,2479.9,0.82239]
[1729994462401,2.16562247,2480.0,2479.9,0.82239]
[1729994462901,2.16562247,2480.0,2479.8,0.4257]
[1729994463108,1.30842247,2479.9,2479.8,0.8294]
[1729994463294,0.8572,2480.0,2479.8,1.73412247]
[1729994463496,0.8572,2480.0,2479.9,0.4037]
[1729994464418,2.16562247,2480.0,2479.9,0.4037]
[1729994465101,2.56931247,2480.0,2479.8,0.82941]
[1729994465494,2.16562247,2480.0,2479.8,0.82941]
[1729994466097,2.16562247,2480.0,2479.8,0.4257]
[1729994466298,2.16562247,2480.0,2479.9,0.4037]
[1729994466598,2.16562247,2480.0,2479.8,0.4257]
[1729994466905,2.16562247,2480.0,2479.3,3.61159]
[1729994466906,5.34122247,2479.9,2479.3,3.61159]
[1729994467100,1.30842247,2479.4,2479.2,0.8238]
[1729994467300,0.4076,2479.3,2479.2,0.8238]
[1729994467608,0.8437,2479.3,2479.2,0.8238]
[1729994468393,0.8437,2479.3,2479.2,2.13222247]
[1729994469401,2.15212247,2479.3,2479.2,0.82381]
[1729994472507,2.15212247,2479.3,2479.2,2.13223247]
[1729994472508,0.8437,2479.3,2479.2,2.13223247]
[1729994472707,1.30842247,2479.5,2479.4,0.40378]
[1729994472913,1.74112247,2479.5,2479.4,0.40378]
[1729994473618,1.30842247,2479.8,2479.4,1.30842247]
[1729994473822,4.51622247,2479.9,2479.8,0.40372]
[1729994474119,1.30842247,2479.9,2479.8,0.40372]
[1729994474319,1.30842247,2479.9,2479.8,0.81802]
[1729994474916,0.824,2480.0,2479.8,0.81802]
[1729994475123,1.22507,2480.1,2479.9,0.4037]
[1729994475322,1.30842247,2480.0,2479.9,0.4037]
[1729994475622,1.6454,2480.1,2480.0,0.40368]
[1729994476124,2.95382247,2480.1,2480.0,0.40368]
[1729994477620,3.35749247,2480.1,2480.0,0.40368]
[1729994477826,2.95382247,2480.1,2480.0,0.40368]
[1729994479016,1.6454,2480.1,2480.0,0.40368]
[1729994479216,4.0318,2480.2,2480.0,1.30842247]
[1729994479423,4.0318,2480.2,2479.8,0.4143]
[1729994479424,4.0318,2480.2,2480.1,0.40367]
[1729994479616,4.88496,2480.2,2480.0,0.40368]
[1729994479824,0.4072,2480.1,2480.0,0.40368]
[1729994480219,1.71562247,2480.1,2480.0,0.40368]
[1729994481116,1.71562247,2480.1,2479.9,0.83999]
[1729994481430,1.30842247,2480.0,2479.9,0.83999]
[1729994483030,0.4037,2479.9,2479.7,0.40373]
[1729994483231,1.30842247,2479.8,2479.7,0.40373]
[1729994483429,1.71412247,2479.8,2479.5,1.30842247]
[1729994483638,1.30842247,2479.6,2479.5,0.40375]
[1729994485129,1.71572247,2479.7,2479.6,0.40375]
[1729994486027,3.2078,2480.2,2479.6,5.34122247]
[1729994486334,0.4376,2480.1,2480.0,1.71210247]
[1729994488934,0.4376,2480.1,2480.0,0.40368]
[1729994494343,1.74602247,2480.1,2480.0,0.40368]
[1729994494634,5.79800247,2480.1,2479.9,0.4301]
[1729994494839,1.30842247,2480.0,2479.9,0.4301]
[1729994495231,1.71210247,2480.0,2479.9,0.4301]
[1729994496836,0.4037,2479.9,2479.6,1.30842247]
[1729994497037,1.30842247,2479.7,2479.5,0.40376]
[1729994497232,4.0859,2480.1,2479.5,0.40376]
[1729994497233,1.30842247,2479.6,2479.5,0.40376]
[1729994497435,1.71892247,2479.6,2479.4,0.81057]
[1729994497636,2.14429247,2479.5,2479.4,0.4068]
[1729994497841,1.74052247,2479.5,2479.4,0.4068]
[1729994498243,2.14429247,2479.5,2479.4,0.4068]
[1729994498637,1.74052247,2479.5,2479.4,0.4068]
[1729994499345,9.38489247,2479.5,2479.2,0.4038]
[1729994499641,1.30842247,2479.3,2479.2,0.4038]
[1729994500348,4.04367,2479.5,2479.2,0.4038]
[1729994500550,3.6399,2479.5,2479.0,0.8661]
[1729994500744,3.6399,2479.5,2479.3,0.40379]
[1729994500945,4.04367,2479.5,2479.2,0.40381]
[1729994501245,4.04367,2479.5,2479.0,0.8661]
[1729994501246,3.6399,2479.5,2479.0,0.8661]
[1729994501434,4.04368,2479.5,2479.2,0.40381]
[1729994506549,4.04368,2479.5,2479.0,0.8661]
[1729994506751,4.04368,2479.5,2479.3,0.4038]
[1729994507446,4.04368,2479.5,2479.2,0.4038]
[1729994507851,0.81008,2479.4,2479.2,0.4038]
[1729994508847,0.81008,2479.4,2479.1,0.40382]
[1729994509446,0.81008,2479.4,2479.0,0.8661]
[1729994509447,0.40381,2479.3,2479.0,0.8661]
[1729994509647,0.40381,2479.3,2479.1,0.40383]
[1729994509847,0.828,2479.3,2479.1,0.40383]
[1729994510151,1.2318,2479.3,2479.1,0.40383]
[1729994510458,0.828,2479.3,2479.1,0.40383]
[1729994511261,1.2318,2479.3,2479.0,1.26993]
[1729994511555,3.61161,2479.2,2478.9,0.40386]
[1729994511755,0.4459,2479.1,2478.9,0.40386]
[1729994511956,0.8821,2479.1,2478.7,0.8674]
[1729994512148,2.83711929,2478.9,2478.7,0.4365]
[1729994512347,0.8821,2479.1,2479.0,0.40385]
[1729994516960,1.28593,2479.1,2478.8,0.4309]
[1729994517161,1.28593,2479.1,2478.9,0.40386]
[1729994517162,0.40385,2479.0,2478.9,0.40386]
[1729994517960,1.28594,2479.1,2478.9,0.40386]
[1729994518662,1.28594,2479.1,2479.0,0.40385]
[1729994518848,1.28594,2479.1,2478.9,0.40385]
[1729994519957,3.2078,2479.0,2478.9,0.40385]
[1729994520356,4.51731525,2479.0,2478.9,0.40385]
[1729994520560,4.51731525,2479.0,2478.8,0.4309]
[1729994520855,1.71338525,2478.9,2478.7,0.84039]
[1729994521051,2.54239525,2478.8,2478.7,0.4365]
[1729994521247,2.13851525,2478.8,2478.5,0.425]
[1729994521451,1.30951525,2478.6,2478.5,1.24412]
[1729994522161,1.30951525,2478.6,2478.5,2.55364525]
[1729994523359,0.829,2478.8,2478.7,0.40389]
[1729994523556,0.8436,2478.7,2478.5,0.8402]
[1729994523857,1.30951525,2478.6,2478.5,0.8402]
[1729994524062,1.30951525,2478.6,2478.5,1.24413]
[1729994524862,1.30951525,2478.6,2478.5,0.8402]
[1729994525265,1.71342525,2478.6,2478.5,0.8402]
[1729994525458,1.30951525,2478.6,2478.5,0.8402]
[1729994525661,1.71342525,2478.6,2478.5,0.8402]
[1729994526362,1.30951525,2478.6,2478.5,0.8402]
[1729994526660,1.30951525,2478.6,2478.5,1.24412]
[1729994530562,1.30951525,2478.6,2478.5,0.8402]
[1729994530952,1.30951525,2478.6,2478.5,1.24413]
[1729994532862,1.30951525,2478.6,2478.5,0.8402]
[1729994533771,1.71342525,2478.6,2478.5,0.8402]
[1729994534471,1.30951525,2478.6,2478.5,0.8402]
[1729994535072,1.30951525,2478.6,2478.5,1.24413]
[1729994537670,1.71342525,2478.6,2478.5,0.8402]
[1729994538567,1.71342525,2478.6,2478.5,0.4152]
[1729994539070,1.30951525,2478.6,2478.5,0.4152]
[1729994539265,1.71342525,2478.6,2478.5,0.4152]
[1729994540269,1.30951525,2478.6,2478.3,0.411]
[1729994540463,0.40394,2478.5,2478.4,0.4368]
[1729994540865,4.0823,2478.7,2478.4,0.4368]
[1729994541071,4.0823,2478.7,2478.4,0.84075]
[1729994541268,4.0823,2478.7,2478.4,0.4368]
[1729994541467,0.40392,2478.6,2478.4,0.4368]
[1729994541667,1.75051525,2478.5,2478.4,0.4368]
[1729994541866,1.75051525,2478.5,2478.4,0.84075]
[1729994543061,0.4397,2478.7,2478.5,0.40393]
[1729994543261,0.4397,2478.7,2478.6,0.85231]
[1729994544270,2.57821525,2478.7,2478.6,0.85231]
[1729994547964,2.57821525,2478.7,2478.6,0.4484]
[1729994548172,2.57821525,2478.7,2478.6,0.40391]
[1729994548760,2.57821525,2478.7,2478.5,0.4425]
[1729994548966,2.98212525,2478.7,2478.5,0.84642]
[1729994549170,1.30951525,2478.6,2478.5,0.4425]
[1729994549368,2.16403525,2478.6,2478.4,0.84074]
[1729994549571,1.71344525,2478.5,2478.4,0.4368]
[1729994551771,2.6190305,2478.5,2478.1,1.05274398]
[1729994551970,1.30951525,2478.2,2478.1,2.31923398]
[1729994552276,2.13851525,2478.2,2478.1,1.26649]
[1729994552573,2.54631525,2478.2,2478.1,1.26649]
[1729994553673,2.54631525,2478.2,2478.1,0.8625]
[1729994555478,0.40399,2478.1,2478.0,1.05274398]
[1729994555670,0.40401,2478.0,2477.8,0.417]
[1729994555975,1.71354525,2477.9,2477.8,0.417]
[1729994558373,1.30951525,2477.9,2477.7,0.4349]
[1729994558572,3.4893305,2477.8,2477.5,0.8469]
[1729994558770,1.30951525,2477.6,2477.5,0.8469]
[1729994559673,1.30951525,2477.6,2477.5,1.25099]
[1729994562981,1.30951525,2477.6,2477.5,0.8469]
[1729994563303,1.71359525,2477.6,2477.5,0.8469]
[1729994563693,1.71359525,2477.6,2477.5,0.4158]
[1729994564104,1.30951525,2477.6,2477.5,0.4158]
[1729994565497,1.30951525,2477.6,2477.5,0.81989]
[1729994569701,1.66096,2477.7,2477.6,0.40408]
[1729994569702,4.4647,2477.7,2477.6,0.40408]
[1729994569903,7.0837305,2477.7,2477.6,0.40408]
[1729994570298,3.8759305,2477.7,2477.6,0.40408]
[1729994570602,4.2799905,2477.7,2477.6,0.40408]
[1729994570802,4.2799905,2477.7,2477.5,0.4158]
[1729994571004,1.30951525,2477.6,2477.5,0.81988]
[1729994575706,0.8703,2477.8,2477.7,0.40406]
[1729994575905,6.21461525,2477.8,2477.7,0.40406]
[1729994576107,10.25061525,2477.8,2477.7,0.40406]
[1729994576306,11.5601305,2477.8,2477.7,0.40406]
[1729994576911,10.25061525,2477.8,2477.7,0.40406]
[1729994577508,7.04281525,2477.8,2477.7,0.40406]
[1729994578207,3.00681525,2477.8,2477.7,0.40406]
[1729994578403,4.3163305,2477.8,2477.7,0.40406]
[1729994579109,8.3523305,2477.8,2477.7,0.40406]
[1729994579309,3.00681525,2477.8,2477.7,0.40406]
[1729994581513,3.2078,2477.9,2477.8,0.40404]
[1729994581813,4.51731525,2477.9,2477.8,0.40404]
[1729994582313,4.92134525,2477.9,2477.8,0.40404]
[1729994582504,5.37074525,2477.9,2477.8,0.40404]
[1729994582906,4.96671525,2477.9,2477.8,0.40404]
[1729994583409,4.51731525,2477.9,2477.8,0.40404]
[1729994584111,1.30951525,2477.9,2477.8,0.40404]
[1729994587316,3.2078,2478.1,2478.0,0.40401]
[1729994587510,5.34231525,2478.1,2478.0,0.40401]
[1729994591317,4.51731525,2478.1,2478.0,0.40401]
[1729994591517,4.51731525,2478.1,2478.0,4.43921]
[1729994591715,4.51731525,2478.1,2478.0,6.59312525]
[1729994591913,1.30951525,2478.1,2478.0,6.59312525]
[1729994594126,1.30951525,2478.1,2478.0,5.28361]
[1729994595626,0.4472,2478.4,2478.0,4.8796]
[1729994595824,0.4472,2478.4,2478.2,0.40397]
[1729994596020,1.30951525,2478.3,2478.2,0.40397]
[1729994596926,1.30951525,2478.3,2478.1,0.84408]
[1729994597123,1.30951525,2478.2,2478.1,0.84408]
[1729994598723,1.30951525,2478.2,2478.1,4.87928]
[1729994599627,4.0328,2478.5,2478.4,0.40395]
[1729994599826,5.34231525,2478.5,2478.4,0.40395]
[1729994600219,3.2078,2478.5,2478.4,0.40395]
[1729994600425,1.30951525,2478.5,2478.4,4.43835]
[1729994600619,1.30951525,2478.5,2478.4,4.87105]